[Event "34th GER-ch Seniors-50 2022"]
[Site "Magdeburg"]
[Date "2022.08.12"]
[Round "1.1"]
[White "Witte, Ronald"]
[Black "Zude, Arno"]
[Result "0-1"]
[ECO "E16"]
[WhiteElo "1980"]
[BlackElo "2371"]
[Annotator "TA"]
[PlyCount "70"]
[EventDate "2022.08.12"]
[EventType "swiss"]
[EventCountry "GER"]
[SourceTitle "playchess.com"]
[Source "ChessBase"]
[SourceQuality "1"]
[TimeControl "40/5400+30:1800+30"]

{[%evp 20,70,14,22,50,21,20,9,34,-4,0,-14,-20,-13,-13,-39,-35,-52,-51,-56,-37,-34,-32,-43,-28,-37,-34,-26,12,1,27,26,20,8,20,20,60,0,0,0,0,0,0,0,0,-50,-49,-50,-49,-50,0,-50,0]} 1. d4 {[%emt 0:00:27]} Nf6 {[%emt 0:00:15]} 2. c4 {[%emt 0:00:15]} e6 {[%emt 0:00:08]} 3. Nf3 {[%emt 0:00:48]} Bb4+ {[%emt 0:01:21]} 4. Bd2 {[%emt 0:00:15]} Qe7 {[%emt 0:00:26]} 5. Nc3 {[%emt 0:01:38]} b6 {[%emt 0:06:40]} 6. g3 {[%emt 0:04:16]} Bb7 {[%emt 0:03:19]} 7. Bg2 {[%emt 0:00:24]} Bxc3 {[%emt 0:03:05]} 8. Bxc3 {[%emt 0:00:30]} Ne4 {[%emt 0:00:07]} 9. Qc2 {[%emt 0:04:57]} Nxc3 {[%emt 0:05:42]} 10. Qxc3 {[%emt 0:00:21]} O-O {[%emt 0:03:28]} 11. O-O {[%emt 0:01:38]} c5 {[%emt 0:06:00] E16: Queen's Indian: 4 g3 Bb7 5 Bg2 Bb4+.} 12. dxc5 {[%emt 0:23:54]} bxc5 {[%emt 0:00:55]} 13. Rfd1 {[%emt 0:01:42] [#]} Rd8 $146 {[%emt 0:06:03] The position is equal.} ({Predecessor:} 13... Nc6 14. Rd2 d6 15. Rad1 Rfd8 16. Qe3 Rd7 17. Qg5 Qf8 18. Qf4 Rad8 19. Ng5 h6 {0-1 (34) Schaefer,M (2176)-Solomon,K (2414) Ortisei 2013}) 14. Rac1 {[%emt 0:05:44]} (14. Qd3 $5 {[%cal Rf3g5]} d5 15. cxd5 exd5 16. Rac1 $11) 14... d6 {[%emt 0:03:51]} 15. Qc2 {[%emt 0:28:14][%cal Of3g5]} Nc6 {[%emt 0:04:53]} 16. b3 {[%emt 0:01:48]} a5 {[%emt 0:02:29]} 17. a4 {[%emt 0:03:30]} Rab8 {[%emt 0:08:02]} 18. e3 {[%emt 0:01:29]} Nb4 {[%emt 0:15:24]} 19. Qb2 {[%emt 0:03:16]} e5 {[%emt 0:02:51][%cal Be6e5,Be5e4][%mdl 32]} 20. Rd2 {[%emt 0:05:21]} e4 {[%emt 0:03:48]} 21. Ne1 {[%emt 0:00:08]} g5 {[%emt 0:05:15]} 22. Bf1 {[%emt 0:00:53]} Nc6 {[%emt 0:01:20]} 23. Qc3 {[%emt 0:00:53]} g4 {[%emt 0:05:13]} 24. Ng2 {[%emt 0:02:42]} Ne5 {[%emt 0:00:37]} 25. Be2 {[%emt 0:00:07]} Bc6 {[%emt 0:01:40]} 26. Nf4 {[%emt 0:00:24]} f6 {[%emt 0:03:04]} 27. Rcd1 {[%emt 0:02:30]} Kf7 {[%emt 0:01:30]} 28. Nd5 {[%emt 0:04:21]} ({Much weaker is} 28. Qxa5 Rxb3 29. Nd5 Qd7 $15) (28. h3 $14) 28... Bxd5 $11 {[%emt 0:01:05]} 29. Rxd5 {[%emt 0:00:02]} Qc7 {[%emt 0:01:49]} 30. Qc2 {[%emt 0:00:33]} f5 {[%emt 0:01:15]} 31. Kg2 {[%emt 0:01:25]} Ke6 {[%emt 0:00:24]} 32. h4 {[%emt 0:00:32]} (32. h3 $11 h5 33. Qc3) 32... Rd7 $15 {[%emt 0:01:28]} 33. Rb1 {[%emt 0:01:02]} Rb4 {[%emt 0:00:39]} 34. Qc3 {[%emt 0:00:42]} Qb6 {[%emt 0:01:09]} (34... Qb8 $15) 35. Rb2 {[%emt 0:00:39]} (35. Rbd1 $1 $11) 35... Rb7 {[%emt 0:01:04][%mdl 32768] Weighted Error Value: White=0.13 (very precise) /Black=0.12 (very precise) . Loss on time!?} ({Black should play} 35... Ra7 $15) 0-1

[Event "34th GER-ch Seniors-50 2022"]
[Site "Magdeburg"]
[Date "2022.08.12"]
[Round "1.2"]
[White "Pirrot, Dieter"]
[Black "Fabig, Holger"]
[Result "1-0"]
[ECO "B00"]
[WhiteElo "2328"]
[BlackElo "1970"]
[Annotator "TA"]
[PlyCount "33"]
[EventDate "2022.08.12"]
[EventType "swiss"]
[EventCountry "GER"]
[SourceTitle "playchess.com"]
[Source "ChessBase"]
[SourceQuality "1"]
[TimeControl "40/5400+30:1800+30"]

{[%evp 11,33,50,53,10,9,-36,269,271,624,643,644,566,596,611,674,557,550,527,849,866,997,1008,1080,1061]} 1. e4 {[%emt 0:00:04]} e6 {[%emt 0:00:07]} 2. d4 {[%emt 0:00:10]} b6 {[%emt 0:00:15]} 3. Bd3 {[%emt 0:00:35]} Bb7 {[%emt 0:00:03]} 4. Nf3 {[%emt 0:00:36]} Nf6 {[%emt 0:00:02]} 5. Qe2 {[%emt 0:04:01]} d5 {[%emt 0:00:11]} 6. e5 {[%emt 0:00:45]} Nfd7 {[%emt 0:00:03]} 7. h4 {[%emt 0:07:12][%cal Bh2h4,Bh4h5,Bh5g6,Bg6f7][%mdl 32] B00: Queen's Fianchetto Defence, Nimzowitsch Defence.} c5 {[%emt 0:01:04] aiming for ...c4.} 8. Ng5 {[%emt 0:08:27][%cal Og5e6] Threatens to win with Nxe6!} g6 $2 {[%emt 0:11:49][%mdl 8192] [#] Loses the game.} (8... Qe7 $15) 9. h5 $1 $18 {[%emt 0:02:06] White has a decisive advantage.} (9. Qf3 Qe7 $11) 9... c4 $2 {[%emt 0:04:42] [#]} (9... Qe7 10. hxg6 fxg6 11. Bxg6+ hxg6 12. Rxh8 cxd4) 10. hxg6 $146 {[%emt 0:08:08] White is clearly winning.} ({Predecessor:} 10. Qf3 Qe7 11. hxg6 cxd3 12. Nxf7 hxg6 13. Nxh8 dxc2 14. Nc3 Nc6 15. Nxg6 Qb4 16. Nxf8 Nxf8 {1-0 (28) Urkedal,F (2176)-Carlsen,H (2095) Gausdal 2007}) 10... cxd3 {[%emt 0:00:51]} 11. gxf7+ {[%emt 0:02:17]} Ke7 {[%emt 0:00:06]} 12. Qg4 {[%emt 0:01:16][%csl Gg5][%cal Rg4e6]} Qc8 {[%emt 0:05:34]} 13. Nc3 {[%emt 0:09:26]} Nxe5 {[%emt 0:14:54]} 14. dxe5 {[%emt 0:00:21]} Nc6 {[%emt 0:06:59]} 15. Nxh7 {[%emt 0:08:10] Pair of Knights!} Nxe5 {[%emt 0:07:35]} 16. Qg5+ {[%emt 0:00:34]} ({Weaker is} 16. Qf4 Bg7 $16) 16... Kd6 {[%emt 0:00:05]} 17. Bf4 {[%emt 0:00:44][%csl LRd3,LRe5] Weighted Error Value: White=0.24 (precise) /Black=1.06} 1-0

[Event "34th GER-ch Seniors-50 2022"]
[Site "Magdeburg"]
[Date "2022.08.12"]
[Round "1.3"]
[White "Noldt, Torsten"]
[Black "Raitza, Olaf"]
[Result "0-1"]
[ECO "A13"]
[WhiteElo "1965"]
[BlackElo "2289"]
[Annotator "TA"]
[PlyCount "72"]
[EventDate "2022.08.12"]
[EventType "swiss"]
[EventCountry "GER"]
[SourceTitle "playchess.com"]
[Source "ChessBase"]
[SourceQuality "1"]
[TimeControl "40/5400+30:1800+30"]

{[%evp 10,72,10,-59,-61,-67,-66,-87,-79,-66,-68,-73,-70,-86,-80,-86,-81,-100,-90,-128,-131,-135,-30,-118,-30,-24,-41,-42,-20,-100,-95,-133,-122,-139,-140,-133,-125,-145,-145,-145,-145,-145,-135,-141,-136,-129,-123,-121,-120,-130,-102,-98,-92,-125,-104,-311,-303,-560,-560,-560,-560,-560,-560,-560,-560]} 1. Nf3 {[%emt 0:00:09]} Nf6 {[%emt 0:00:11]} 2. c4 {[%emt 0:00:30]} e6 {[%emt 0:00:17]} 3. b3 {[%emt 0:01:29]} d5 {[%emt 0:00:47]} 4. e3 {[%emt 0:01:41]} c5 {[%emt 0:01:43]} 5. Bb2 {[%emt 0:01:11]} Nc6 {[%emt 0:03:04]} 6. Be2 {[%emt 0:07:29]} (6. cxd5 $11 exd5 7. Be2) 6... d4 $1 {[%emt 0:04:03] 6...d4 is better than 6...Be7. A13: English Opening: 1...e6.} 7. d3 {[%emt 0:05:45]} e5 {[%emt 0:03:28]} 8. exd4 {[%emt 0:01:48]} exd4 {[%emt 0:05:46] Black is better.} ({Much less strong is} 8... Nxd4 9. Nxe5 Qe7 10. f4 $14) 9. O-O {[%emt 0:00:35]} Bd6 {[%emt 0:00:37]} 10. Re1 {[%emt 0:04:35]} O-O {[%emt 0:00:17]} 11. Nbd2 {[%emt 0:01:11]} h6 {[%emt 0:04:09] Black is more active.} 12. a3 {[%emt 0:06:11][%cal Ob3b4] [#]} a5 $146 {[%emt 0:00:32]} (12... Bf5 13. Nf1 Qd7 14. Ng3 Bh7 15. Bf1 Rfe8 16. Qd2 b6 17. Rxe8+ Rxe8 18. Rb1 Ng4) ({Predecessor:} 12... Bf5 13. Nf1 Qd7 14. Ng3 Bh7 15. Bf1 Rfe8 16. Qd2 b6 17. Rxe8+ Rxe8 18. Rb1 Ng4 {0-1 (39) Vedder,H (2378)-Ben Artzi,I (2286) Hoogeveen 2012}) 13. h3 {[%emt 0:08:39]} g5 {[%emt 0:11:50]} 14. Ne4 {[%emt 0:03:04]} Nxe4 {[%emt 0:02:19]} 15. dxe4 {[%emt 0:00:07]} f5 {[%emt 0:00:04]} (15... Qf6 $17 16. Bf1 Re8) 16. e5 {[%emt 0:13:37]} (16. exf5 $1 $11 Bxf5 17. b4) 16... Bxe5 {[%emt 0:02:23]} ({Black should try} 16... Bc7 $17 {Threatens to win with ...g4.} 17. Qd2 Ra6) 17. Nxe5 $11 {[%emt 0:01:25]} Nxe5 {[%emt 0:00:02]} 18. Bh5 {[%emt 0:00:55]} Qd6 {[%emt 0:04:19]} 19. Qe2 {[%emt 0:11:29]} (19. f4 $1 $11 gxf4 20. Bc1) 19... Nc6 $17 {[%emt 0:01:36]} 20. Bf3 {[%emt 0:05:49]} Bd7 {[%emt 0:02:11]} 21. Bd5+ {[%emt 0:01:09]} Kg7 {[%emt 0:00:34]} 22. Bxc6 {[%emt 0:08:08]} Bxc6 {[%emt 0:00:16]} 23. Qe5+ {[%emt 0:00:28]} Qxe5 {[%emt 0:06:39]} 24. Rxe5 {[%emt 0:00:07]} b6 {[%emt 0:00:08]} 25. Re6 {[%emt 0:01:32]} Rf6 {[%emt 0:00:41]} 26. Re7+ {[%emt 0:02:34]} Kf8 {[%emt 0:05:12]} 27. Rae1 {[%emt 0:02:21]} Re8 {[%emt 0:00:18]} 28. Rxe8+ {[%emt 0:00:47]} Bxe8 {[%emt 0:00:04][%mdl 4096] Endgame KRB-KRB} 29. Re5 {[%emt 0:01:38][%cal Ob3b4]} f4 {[%emt 0:03:53]} 30. b4 {[%emt 0:01:23]} Rc6 {[%emt 0:04:36]} 31. bxa5 {[%emt 0:01:20][%cal Oh3h4]} bxa5 {[%emt 0:00:07]} (31... Bf7 32. a4 d3) 32. Rf5+ $2 {[%emt 0:01:05] This costs White the game.} (32. a4) (32. a4 $17) 32... Bf7 $19 {[%emt 0:04:51] [#] White must now prevent ...Rb6.} 33. a4 $2 {[%emt 0:00:29]} (33. Bc1) (33. Re5 {is a better defense.}) 33... Rb6 {[%emt 0:11:12] Black is clearly winning.} 34. Ba3 {[%emt 0:00:15]} Rb1+ {[%emt 0:00:07]} 35. Kh2 {[%emt 0:00:03]} d3 {[%emt 0:00:07] Strongly threatening ...d2.} 36. Rxc5 {[%emt 0:00:39] [#] And now Rb5+ would win.} Kg7 {[%emt 0:00:30] Weighted Error Value: White=0.35/Black=0.15 (very precise)} 0-1

[Event "34th GER-ch Seniors-50 2022"]
[Site "Magdeburg"]
[Date "2022.08.12"]
[Round "1.4"]
[White "De Roda Husman, Juan"]
[Black "Dreke, Frank"]
[Result "1-0"]
[ECO "B05"]
[WhiteElo "2266"]
[BlackElo "1955"]
[Annotator "TA"]
[PlyCount "91"]
[EventDate "2022.08.12"]
[EventType "swiss"]
[EventCountry "GER"]
[SourceTitle "playchess.com"]
[Source "ChessBase"]
[SourceQuality "1"]
[TimeControl "40/5400+30:1800+30"]

{[%evp 18,91,50,25,62,25,40,32,39,30,124,134,141,106,90,89,84,44,45,43,45,47,43,37,43,41,142,136,143,141,143,129,175,124,172,181,221,151,156,121,154,102,152,155,150,150,150,155,156,159,180,120,121,71,59,63,58,68,168,158,164,152,232,208,448,427,464,493,602,593,582,571,763,752,541,462]} 1. e4 {[%emt 0:00:03][%cal Be2e4,Be4e5][%mdl 32]} Nf6 {[%emt 0:04:16]} 2. e5 {[%emt 0:00:22]} Nd5 {[%emt 0:00:11]} 3. d4 {[%emt 0:00:35]} d6 {[%emt 0:00:29]} 4. Nf3 {[%emt 0:00:48]} Bg4 {[%emt 0:01:46]} 5. Be2 {[%emt 0:00:27]} e6 {[%emt 0:00:03]} 6. O-O {[%emt 0:01:00]} Be7 {[%emt 0:00:03]} 7. c4 {[%emt 0:03:35]} Nb6 {[%emt 0:00:04]} 8. exd6 {[%emt 0:00:35]} cxd6 {[%emt 0:00:03]} 9. Nc3 {[%emt 0:11:09]} O-O {[%emt 0:00:11]} 10. b3 {[%emt 0:02:15]} (10. h3 $5 {[%cal Rh3g4]} Bxf3 11. Bxf3 $14) 10... a5 {[%emt 0:08:47] B05: Alekhine's Defence: 4 Nf3 Bg4.} 11. a4 {[%emt 0:02:29]} Nc6 {[%emt 0:02:28]} 12. Nb5 {[%emt 0:08:35] [#]} Nb4 $146 {[%emt 0:12:08] White is slightly better.} ({Predecessor:} 12... Nd7 13. h3 Bf5 14. d5 exd5 15. Qxd5 Bg6 16. Bf4 Nc5 17. Nxd6 Nxb3 18. Rad1 Bxd6 19. Bxd6 {½-½ (35) Shtanko,D (2311)-Nosenko,A (2498) Alushta 2009}) 13. Bf4 {[%emt 0:06:11]} f6 {[%emt 0:02:16]} (13... Bf5 $11) 14. Ne1 $16 {[%emt 0:05:08]} Bf5 {[%emt 0:07:16]} 15. Bg4 {[%emt 0:11:50]} Bxg4 {[%emt 0:00:24]} 16. Qxg4 {[%emt 0:00:07]} e5 {[%emt 0:04:26]} 17. dxe5 {[%emt 0:04:10]} dxe5 {[%emt 0:02:20]} 18. Bh6 $40 {[%emt 0:05:32][%csl Gh6][%cal Rg4g7][%mdl 128] [#] White has some attack.} Rf7 {[%emt 0:01:10]} 19. Rd1 {[%emt 0:00:51]} Qc8 {[%emt 0:04:16]} 20. Qxc8+ {[%emt 0:03:40]} Rxc8 {[%emt 0:01:01]} 21. Be3 {[%emt 0:00:38]} Bc5 {[%emt 0:12:40]} (21... Rc6 $14) 22. Bxc5 {[%emt 0:01:11]} Rxc5 {[%emt 0:00:05]} 23. Nd3 {[%emt 0:00:53]} Nxd3 {[%emt 0:04:00]} 24. Rxd3 {[%emt 0:00:09]} e4 {[%emt 0:03:49]} (24... Rc8 $16) 25. Rd8+ $18 {[%emt 0:07:47]} Rf8 {[%emt 0:00:06]} 26. Rfd1 {[%emt 0:00:14]} Rc8 {[%emt 0:04:01]} 27. Rxc8 {[%emt 0:01:26]} Nxc8 {[%emt 0:00:21][%mdl 4096] Endgame KRN-KRN} 28. g4 {[%emt 0:01:15]} g6 {[%emt 0:02:45]} 29. Nc7 {[%emt 0:04:04]} (29. Nc3 $142) 29... b6 {[%emt 0:05:53]} ({Black should try} 29... Na7) 30. Rd4 {[%emt 0:03:27] White is more active.} f5 {[%emt 0:00:30]} 31. g5 {[%emt 0:00:24]} h6 {[%emt 0:03:39]} 32. h4 {[%emt 0:00:49][%cal Bh2h4,Bh4g5][%mdl 32]} hxg5 {[%emt 0:00:20]} 33. hxg5 {[%emt 0:00:07]} Rf7 {[%emt 0:04:23]} 34. Ne8 {[%emt 0:04:31]} (34. Rd8+ $18 Rf8 35. Rd1) 34... Rf8 {[%emt 0:06:41]} 35. Nf6+ {[%emt 0:06:36]} (35. Rd8 $142 Kf7 36. Nd6+ Nxd6 37. Rxd6) 35... Kf7 $16 {[%emt 0:01:05]} 36. Rd7+ {[%emt 0:02:18]} Ke6 {[%emt 0:00:10]} 37. Rb7 {[%emt 0:01:24]} Kd6 {[%emt 0:03:29]} (37... Rd8 $14) 38. Kg2 $18 {[%emt 0:00:44]} Rd8 {[%emt 0:01:12]} 39. Nd5 {[%emt 0:00:27]} Kc5 {[%emt 0:00:16]} (39... Ke5 $16 {keeps fighting.} 40. Kg3 (40. Nxb6 Nxb6 41. Rxb6 Rd2 $11) 40... Rg8) 40. Rg7 {[%emt 0:00:55]} Kd4 $2 {[%emt 0:00:47]} (40... Rd6 41. Kg3 (41. Rc7+ Rc6 $18) 41... Rc6) 41. Rxg6 {[%emt 0:31:46] White is clearly winning.} f4 {[%emt 0:00:41]} 42. Nxf4 {[%emt 0:00:00] [#] Ne6+ is the strong threat.} Kc3 {[%emt 0:01:40]} 43. Nd5+ {[%emt 0:00:00]} Kxb3 {[%emt 0:00:31]} 44. Nxb6 {[%emt 0:00:00]} Nxb6 {[%emt 0:01:55]} 45. Rxb6+ {[%emt 0:00:00]} Kxc4 {[%emt 0:01:45]} 46. Rb5 {[%emt 0:00:00] Weighted Error Value: White=0.14 (very precise) /Black=0.38} 1-0

[Event "34th GER-ch Seniors-50 2022"]
[Site "Magdeburg"]
[Date "2022.08.12"]
[Round "1.5"]
[White "Doeserich, Juergen"]
[Black "Wacker, Peter"]
[Result "0-1"]
[ECO "D35"]
[WhiteElo "1945"]
[BlackElo "2263"]
[Annotator "TA"]
[PlyCount "84"]
[EventDate "2022.08.12"]
[EventType "swiss"]
[EventCountry "GER"]
[SourceTitle "playchess.com"]
[Source "ChessBase"]
[SourceQuality "1"]
[TimeControl "40/5400+30:1800+30"]

{[%evp 13,84,15,18,22,27,15,32,17,23,22,17,12,35,23,20,0,8,-27,-33,-25,-17,-28,-35,-22,-12,-3,0,-128,-134,-132,-145,-135,-139,-127,-92,-147,-122,-219,-77,-89,-84,-92,-87,-257,-261,-249,-249,-242,-212,-208,-181,-492,-493,-543,-546,-939,-740,-720,-833,-823,-819,-806,-769,-796,-754,-881,-850,-6202,-6260,-29980,-29981,-29981,-29982]} 1. d4 {[%emt 0:00:05]} Nf6 {[%emt 0:00:20]} 2. c4 {[%emt 0:00:07]} e6 {[%emt 0:00:08]} 3. Nc3 {[%emt 0:00:18]} d5 {[%emt 0:00:26]} 4. cxd5 {[%emt 0:00:30]} exd5 {[%emt 0:00:06]} 5. Bg5 {[%emt 0:00:07]} c6 {[%emt 0:00:06]} 6. e3 {[%emt 0:00:34]} Be7 {[%emt 0:01:35] 6...h6 is more advanced technology.} 7. Bd3 {[%emt 0:01:34]} Nbd7 {[%emt 0:00:56]} 8. h3 {[%emt 0:01:03] D35: Queen's Gambit Declined: Exchange Variation.} b6 {[%emt 0:03:55] [#]} 9. Bf4 $146 {[%emt 0:05:48]} (9. Qc2 Bb7 10. Nge2 c5 11. Ng3 g6 12. Bh6 Rc8 13. Bg7 Rg8 14. Bh6 c4 15. Be2 Nf8) ({Predecessor:} 9. Qc2 Bb7 10. Nge2 c5 11. Ng3 g6 12. Bh6 Rc8 13. Bg7 Rg8 14. Bh6 c4 15. Be2 Nf8 {1-0 (33) Fominykh,M (2259)-Miroshnik,E (2039) Moscow 2019}) 9... Bb7 {[%emt 0:01:21]} 10. Qc2 {[%emt 0:02:23] White is slightly better.} Rc8 {[%emt 0:01:06]} 11. Nf3 {[%emt 0:01:19]} O-O {[%emt 0:03:50]} 12. O-O {[%emt 0:14:11]} (12. Ne5 {seems wilder.} g6 13. Bh6 Re8 14. f4) 12... c5 {[%emt 0:02:05]} 13. Rfd1 {[%emt 0:04:27]} c4 {[%emt 0:03:07]} 14. Bf1 {[%emt 0:02:50]} a6 {[%emt 0:08:43]} 15. Nd2 {[%emt 0:03:52]} b5 {[%emt 0:02:30]} 16. a3 {[%emt 0:01:11]} Re8 {[%emt 0:04:56]} 17. g4 {[%emt 0:04:49]} Nb6 {[%emt 0:01:51]} 18. Bg2 {[%emt 0:03:11]} Bd6 {[%emt 1:02:29]} 19. Bxd6 {[%emt 0:51:41]} Qxd6 {[%emt 0:00:30]} 20. e4 {[%emt 0:00:00]} (20. g5 $11 Nfd7 21. Nf3) 20... dxe4 {[%emt 0:00:00]} 21. Ndxe4 {[%emt 0:01:00]} Nxe4 {[%emt 0:00:00]} 22. Nxe4 {[%emt 0:00:00]} Bxe4 {[%emt 0:00:00]} 23. Bxe4 {[%emt 0:00:00]} h5 {[%emt 0:02:00]} 24. d5 {[%emt 0:00:00]} (24. gxh5 $142 Rcd8 25. Re1) 24... Na4 $17 {[%emt 0:00:30][%cal Oa4b2]} 25. Bf5 {[%emt 0:00:00]} (25. Bh7+ $17 {might work better.} Kh8 26. Bf5 (26. gxh5 $2 g6 $19)) 25... Rc7 {[%emt 0:00:00]} (25... Rcd8 $19 {has better winning chances. Hoping for ...g6.} 26. Rac1 g6) 26. Re1 {[%emt 0:00:00]} Rce7 {[%emt 0:00:00] Black is more active.} 27. Rxe7 {[%emt 0:00:00]} Rxe7 {[%emt 0:00:00]} 28. Qd2 $2 {[%emt 0:00:00] [#] This costs White the game.} (28. b3 Nc5 29. bxc4) (28. b3 $17 Nc5 29. bxc4) 28... hxg4 $19 {[%emt 0:00:00]} 29. hxg4 {[%emt 0:00:00]} g6 {[%emt 0:00:00]} 30. Bc2 {[%emt 0:00:00]} Nb6 {[%emt 0:00:00]} 31. Rd1 {[%emt 0:00:00]} Re5 {[%emt 0:00:00]} 32. Qh6 $2 {[%emt 0:00:00] [#]} (32. Qc3) (32. Qc3) 32... Re2 {[%emt 0:00:00]} 33. Bf5 {[%emt 0:01:08]} Nxd5 {[%emt 0:00:00]} 34. Rd4 {[%emt 0:00:54]} Qe5 {[%emt 0:00:00]} 35. Bxg6 {[%emt 0:00:42]} fxg6 {[%emt 0:00:00]} 36. Qxg6+ {[%emt 0:00:05]} Kf8 {[%emt 0:00:00]} 37. Qh6+ {[%emt 0:00:40]} Ke7 {[%emt 0:00:00]} 38. Qh7+ {[%emt 0:00:15]} Kd6 {[%emt 0:00:00]} 39. Qh6+ {[%emt 0:01:22]} Kc5 {[%emt 0:00:00]} 40. Rxd5+ {[%emt 0:00:07]} Kxd5 {[%emt 0:00:00]} 41. Qxa6 {[%emt 0:30:32]} Re1+ {[%emt 0:15:16]} 42. Kg2 {[%emt 0:00:09]} Qe4+ {[%emt 0:01:34] Weighted Error Value: White=0.86/Black=0.14 (very precise)} 0-1

[Event "34th GER-ch Seniors-50 2022"]
[Site "Magdeburg"]
[Date "2022.08.12"]
[Round "1.6"]
[White "Koscielski, Janusz"]
[Black "Noack, Mario"]
[Result "1-0"]
[ECO "B13"]
[WhiteElo "2255"]
[BlackElo "1938"]
[Annotator "TA"]
[PlyCount "55"]
[EventDate "2022.08.12"]
[EventType "swiss"]
[EventCountry "GER"]
[SourceTitle "playchess.com"]
[Source "ChessBase"]
[SourceQuality "1"]
[TimeControl "40/5400+30:1800+30"]

{[%evp 16,54,51,32,59,64,93,103,143,140,248,242,263,272,279,268,278,264,332,193,173,158,671,671,617,275,748,732,1140,504,495,497,1720,1560,2356,1779,29994,29995,29995,29996,29999]} 1. e4 {[%emt 0:00:06]} c6 {[%emt 0:00:14]} 2. d4 {[%emt 0:01:44]} d5 {[%emt 0:00:22]} 3. exd5 {[%emt 0:00:21]} cxd5 {[%emt 0:00:17]} 4. Bd3 {[%emt 0:00:11]} Nc6 {[%emt 0:00:25]} 5. c3 {[%emt 0:00:26][%cal Bc2c3,Bc3c4][%mdl 32]} g6 {[%emt 0:00:32]} 6. Nf3 {[%emt 0:02:13]} Nh6 {[%emt 0:01:20]} 7. O-O {[%emt 0:02:03]} Bg7 {[%emt 0:01:02]} 8. Re1 {[%emt 0:02:06]} O-O {[%emt 0:00:14]} 9. h3 {[%emt 0:05:31]} f6 {[%emt 0:00:40] B13: Caro-Kann: Exchange Variation and Panov-Botvinnik Attack.} 10. c4 {[%emt 0:04:54]} Nf7 {[%emt 0:04:28][%cal Of7g5]} 11. Nc3 {[%emt 0:13:19] [#]} e5 $146 {[%emt 0:06:28] White is better.} ({Predecessor:} 11... dxc4 12. Bxc4 Kh8 13. a3 e5 14. Bxf7 exd4 15. Nb5 Rxf7 16. Nbxd4 Nxd4 17. Qxd4 Qxd4 18. Nxd4 {½-½ (27) Hugentobler,P (2168)-Berkovich,M (2323) Prague 2021}) 12. dxe5 {[%emt 0:05:54] White is more active.} ({Don't do} 12. cxd5 Nxd4 13. Nxd4 exd4 $16) 12... d4 {[%emt 0:16:28]} (12... fxe5 $16 {was necessary.} 13. Nxd5 Bf5) 13. exf6 $18 {[%emt 0:06:49]} Qxf6 {[%emt 0:05:38]} 14. Nd5 {[%emt 0:05:08]} Qd6 {[%emt 0:03:48]} 15. Bf4 {[%emt 0:08:08]} Nfe5 {[%emt 0:04:00]} 16. Nxe5 {[%emt 0:01:25]} Bxe5 {[%emt 0:08:42]} 17. Bh6 {[%emt 0:09:31]} (17. Bxe5 $142 Nxe5 18. Be4) 17... Bg7 {[%emt 0:09:29]} 18. Qd2 {[%emt 0:02:25] Hoping for Bf4.} Ne5 $2 {[%emt 0:07:37]} (18... Bxh6 19. Qxh6 Bf5) (18... Bxh6 $16 19. Qxh6 Bf5) 19. Bxg7 {[%emt 0:02:36]} Kxg7 {[%emt 0:00:55] [#]} 20. Bf1 {[%emt 0:07:14]} (20. Rxe5 $142 $1 {[%mdl 512]} Qxe5 21. Re1) 20... d3 $2 {[%emt 0:12:09]} (20... Nc6 21. b4 a6) 21. Qc3 {[%emt 0:01:58]} Rf5 {[%emt 0:06:57]} 22. f4 {[%emt 0:03:49]} (22. Bxd3 Rh5 23. Nf4) (22. Bxd3 $142 Rg5 23. f4) 22... Qc5+ {[%emt 0:02:10]} 23. Kh2 {[%emt 0:01:45]} Kh6 {[%emt 0:02:26]} (23... Qxc4 $142 24. Rxe5 Qxc3 25. Nxc3 Rxf4 26. Bxd3 Bd7) 24. Rxe5 {[%emt 0:01:42]} Qf2 {[%emt 0:01:34]} 25. Bxd3 {[%emt 0:02:36]} Rh5 {[%emt 0:01:11]} 26. Rxh5+ {[%emt 0:00:27] White mates.} Kxh5 {[%emt 0:00:23]} 27. Qf6 {[%emt 0:02:03][%csl Gf4][%cal Rf6g5]} h6 {[%emt 0:01:12]} 28. Bxg6# {[%emt 0:00:10] Black got outplayed after the opening.  Weighted Error Value: White=0.62/Black=1.30} 1-0